fUSD/lending_fUSD_20240104
["ID","MTS","AMOUNT","RATE_DAILY","PERIOD"]
[310210345,1704401431908,-1621.20187391,0.0002903,5]
[310210346,1704401431922,-323.26186872,0.0002903,5]
[310210347,1704401431932,-184.0,0.00029698,2]
[310210348,1704401431943,-163.66223879,0.00029943,2]
[310210349,1704401431955,-1025.56830883,0.00030357,2]
[310210350,1704401431971,-1000.68169117,0.00030357,2]
[310210351,1704401431984,-2493.31,0.0003036,2]
[310210352,1704401431995,-2000.0,0.00030369,2]
[310210353,1704401432005,-150.99,0.00030369,2]
[310210354,1704401432016,-177.02,0.0003038,2]
[310210355,1704401432026,-200.0,0.00030421,2]
[310210356,1704401432040,-170.95,0.00030426,2]
[310210357,1704401432053,-250.0,0.00030426,2]
[310210358,1704401432065,-164.69191102,0.00030443,2]
[310210359,1704401434001,-214.28808898,0.00030443,2]
[310210360,1704401434010,-1284.66549289,0.00030443,2]
[310210361,1704401434023,-530.26541467,0.00030443,2]
[310210362,1704401434287,-639.91916815,0.00030443,2]
[310210363,1704401434300,-1216.44,0.00030443,2]
[310210364,1704401434336,-255.97559429,0.00030443,2]
[310210365,1704401434372,-818.10924833,0.00030443,2]
[310210366,1704401434383,-1966.45508167,0.00030443,2]
[310210367,1704401434393,-257.1,0.00030452,2]
[310210368,1704401434402,-500.0,0.00030517,2]
[310210369,1704401434411,-4385.98856742,0.00030535,2]
[310210370,1704401434422,-524.96989304,0.00030535,2]
[310210371,1704401434434,-409.44468286,0.00030535,2]
[310210372,1704401434447,-1711.8032948,0.00030535,2]
[310210373,1704401434459,-96.82356188,0.00030535,2]
[310210374,1704401434469,-250.0,0.0003058,2]
[310210375,1704401434479,-153.69,0.00030601,2]
[310210376,1704401434490,-750.0,0.0003064,2]
[310210377,1704401434499,-467.25,0.00030699,2]
[310210378,1704401434508,-490.82,0.00030857,2]
[310210379,1704401434640,-157.03,0.00030879,2]
[310210380,1704401434656,-88.34068776,0.00030981,2]
[310210381,1704401434673,-66.26931224,0.00030981,2]
[310210382,1704401434682,-302.46358966,0.00030997,4]
[310210383,1704401434692,-8737.78526972,0.00030997,4]
[310210384,1704401434707,-503.15432782,0.00030997,4]
[310210385,1704401434718,-756.35464223,0.00030997,4]
[310210386,1704401434731,-1003.8665897,0.00030997,4]
[310210410,1704401437782,-970.1911163,0.00030997,4]
[310210412,1704401437794,-1855.82786393,0.00030997,4]
[310210414,1704401437804,-310.40976537,0.00030997,4]
[310210418,1704401437816,-211.9596411,0.00030997,4]
[310210421,1704401437825,-155.0,0.00030998,4]
[310210423,1704401437834,-391.40743209,0.00030998,4]
[310210426,1704401437844,-172.07,0.00030999,2]
[310210428,1704401437853,-31.92271188,0.00030999,2]
[310210430,1704401437866,-130.25728812,0.00030999,2]
[310210432,1704401437875,-236.81137845,0.00031,3]
[310210438,1704401438012,-113.18862155,0.00031,3]
[310210439,1704401438022,-155.14,0.000312,2]
[310210440,1704401438031,-378.98,0.00031421,2]
[310210441,1704401438041,-345.40199885,0.00031486,2]
[310210442,1704401438056,-371.83800115,0.00031486,2]
[310210443,1704401438065,-714.45,0.00031548,2]
[310210444,1704401438076,-735.86,0.00031621,2]
[310210445,1704401438085,-154.87,0.00031704,2]
[310210446,1704401438096,-469.69966321,0.00031711,2]
[310210447,1704401438181,-178.73,0.00031657,2]
[310210448,1704401438191,-260.76033679,0.00031711,2]
[310210449,1704401438201,-1000.0,0.00031766,2]
[310210450,1704401438211,-731.29,0.00031819,2]
[310210451,1704401438221,-177.02,0.00031899,2]
[310210452,1704401438232,-714.76,0.00031953,2]
[310210453,1704401438243,-536.785,0.00031969,2]
[310210454,1704401438252,-536.785,0.0003199,2]
[310210455,1704401438262,-536.785,0.00031997,2]
[310210457,1704401438272,-1634.10753121,0.00031998,4]
[310210460,1704401438298,-498.44636745,0.00031998,4]
[310210461,1704401438309,-237.9124541,0.00031998,4]
[310210462,1704401438318,-689.50611015,0.00031998,2]
[310210463,1704401438328,-536.785,0.00031999,2]
[310210464,1704401438337,-530.22705921,0.00031999,7]
[310210465,1704401438346,-10827.42300909,0.00032,2]
[310210466,1704401438358,-273.504,0.00032,2]
[310210507,1704401444564,-825.51222204,0.00032,2]
[310210512,1704401444670,-432.62630566,0.00032,2]
[310210518,1704401444787,-660.19,0.00032,2]
[310210519,1704401445015,-798.22074696,0.00032,2]
[310210520,1704401445074,-701.666667,0.00032,2]
[310210521,1704401445088,-437.36791395,0.00032,2]
[310210522,1704401445100,-410.06882028,0.00032,2]
[310210523,1704401445141,-1987.42031502,0.00032,2]
[310210524,1704401445152,-150.0,0.00032,2]
[310210525,1704401445165,-378.98,0.000324,2]
[310210526,1704401445175,-392.06856442,0.00032546,4]
[310210527,1704401445185,-1998.7296,0.00032576,2]
[310210528,1704401445195,-135.16139151,0.00032676,2]
[310210529,1704401445210,-2364.83860849,0.00032676,2]
[310210530,1704401445219,-165.27,0.00032685,2]
[310210531,1704401445229,-1744.09139151,0.00032776,2]
[310210532,1704401445247,-414.4782138,0.00032776,2]
[310210533,1704401445260,-2841.43039469,0.00032776,2]
[310210534,1704401445270,-45550.96709538,0.00032776,2]
[310210535,1704401445281,-7513.24896539,0.00032776,2]
[310210536,1704401445297,-452.57449115,0.00032776,2]
[310210537,1704401445309,-17717.28215758,0.00032776,2]
[310210538,1704401445326,-1358.95248,0.00032776,2]
[310210540,1704401445337,-18726.4127,0.00032776,2]
[310210543,1704401445349,-7164.09404035,0.00032776,2]
[310210545,1704401445362,-1516.46807015,0.00032776,2]
[310210547,1704401445371,-4582.7148248,0.00032866,3]
[310210549,1704401445381,-89.72933465,0.00032875,4]
[310210551,1704401445392,-334.54293887,0.00032875,4]
[310210555,1704401445417,-269.76999987,0.00032875,4]
[310210562,1704401445449,-295.99918952,0.00032875,4]
[310210564,1704401445459,-155.0,0.00032875,4]
[310210566,1704401445469,-162.04245972,0.00032875,4]
[310210568,1704401445479,-416.64456604,0.00032875,4]
[310210570,1704401445490,-500.0,0.00032876,2]
[310210571,1704401445501,-500.0,0.00032876,2]
[310210573,1704401445510,-500.0,0.00032876,2]
[310210575,1704401445519,-500.0,0.00032876,2]
[310210576,1704401445532,-500.0,0.00032876,2]
[310210577,1704401445542,-500.0,0.00032876,2]
[310210578,1704401445553,-442.27751431,0.00032876,2]
[310210581,1704401445565,-57.72248569,0.00032876,2]
[310210584,1704401445576,-500.0,0.00032876,2]
[310210586,1704401445586,-500.0,0.00032876,2]
[310210588,1704401445595,-500.0,0.00032876,2]
[310210590,1704401445604,-500.0,0.00032876,2]
[310210593,1704401445614,-470.9545538,0.00032876,2]
[310210595,1704401445623,-500.0,0.00032876,2]
[310210597,1704401445633,-572.73914463,0.00032876,2]
[310210598,1704401445643,-500.0,0.00032876,2]
[310210600,1704401445653,-500.0,0.00032876,2]
[310210602,1704401445662,-500.0,0.00032876,2]
[310210603,1704401445672,-443.51019225,0.00032876,2]
[310210606,1704401445681,-500.0,0.00032876,2]
[310210608,1704401445691,-637.91,0.00032876,2]
[310210611,1704401445701,-500.0,0.00032876,2]
[310210613,1704401445710,-500.0,0.00032876,2]
[310210616,1704401445719,-500.0,0.00032876,2]
[310210619,1704401445730,-500.0,0.00032876,2]
[310210620,1704401445739,-501.21842064,0.00032876,2]
[310210623,1704401445750,-500.0,0.00032876,2]
[310210625,1704401445759,-500.0,0.00032876,2]
[310210628,1704401445768,-500.0,0.00032876,2]
[310210630,1704401445777,-324.02522036,0.00032876,2]
[310210632,1704401445786,-500.0,0.00032876,2]
[310210635,1704401445795,-500.0,0.00032876,2]
[310210637,1704401445805,-500.0,0.00032876,2]
[310210639,1704401445815,-500.0,0.00032876,2]
[310210642,1704401445824,-500.0,0.00032876,2]
[310210644,1704401445834,-500.0,0.00032876,2]
[310210676,1704401446098,-500.0,0.00032876,2]
[310210685,1704401446178,-500.0,0.00032876,2]
[310210689,1704401446188,-500.0,0.00032876,2]
[310210693,1704401446197,-500.0,0.00032876,2]
[310210697,1704401446207,-500.0,0.00032876,2]
[310210701,1704401446216,-500.0,0.00032876,2]
[310210705,1704401446226,-500.0,0.00032876,2]
[310210709,1704401446236,-500.0,0.00032876,2]
[310210713,1704401446245,-500.0,0.00032876,2]
[310210717,1704401446255,-577.8349472,0.00032876,2]
[310210720,1704401446264,-500.0,0.00032876,2]
[310210723,1704401446273,-357.64,0.00032876,2]
[310210724,1704401446283,-500.0,0.00032876,2]
[310210728,1704401446293,-500.0,0.00032876,2]
[310210732,1704401446304,-513.73713698,0.00032876,2]
[310210736,1704401446315,-540.28,0.00032876,2]
[310210741,1704401446325,-500.0,0.00032876,2]
[310210746,1704401446335,-500.0,0.00032876,2]
[310210750,1704401446346,-500.0,0.00032876,2]
[310210753,1704401446356,-729.28,0.00032876,2]
[310210757,1704401446366,-500.0,0.00032876,2]
[310210761,1704401446376,-500.0,0.00032876,2]
[310210764,1704401446385,-500.0,0.00032876,2]
[310210768,1704401446394,-500.0,0.00032876,2]
[310210771,1704401446404,-500.0,0.00032876,2]
[310210773,1704401446414,-500.0,0.00032876,2]
[310210775,1704401446423,-500.0,0.00032876,2]
[310210780,1704401446441,-500.0,0.00032876,2]
[310210783,1704401446457,-500.0,0.00032876,2]
[310210787,1704401446469,-513.12,0.00032876,2]
[310210790,1704401446479,-567.47,0.00032876,2]
[310210793,1704401446490,-500.0,0.00032876,2]
[310210796,1704401446500,-500.0,0.00032876,2]
[310210798,1704401446510,-500.0,0.00032876,2]
[310210800,1704401446520,-2007.43,0.00032876,2]
[310210802,1704401446531,-500.0,0.00032876,2]
[310210804,1704401446541,-500.0,0.00032876,2]
[310210806,1704401446552,-500.0,0.00032876,2]
[310210808,1704401446563,-500.0,0.00032876,2]
[310210810,1704401446573,-171.98969341,0.00032876,2]
[310210812,1704401446583,-500.0,0.00032876,2]
[310210814,1704401446593,-500.0,0.00032876,2]
[310210817,1704401446603,-500.0,0.00032876,2]
[310210819,1704401446613,-500.0,0.00032876,2]
[310210821,1704401446623,-500.0,0.00032876,2]
[310210823,1704401446634,-500.0,0.00032876,2]
[310210825,1704401446644,-510.12,0.00032876,2]
[310210827,1704401446654,-625.0,0.00032876,2]
[310210829,1704401446663,-516.94112137,0.00032876,2]
[310210831,1704401446673,-500.0,0.00032876,2]
[310210833,1704401446684,-500.0,0.00032876,2]
[310210835,1704401446694,-500.0,0.00032876,2]
[310210838,1704401446704,-500.0,0.00032876,2]
[310210840,1704401446714,-548.66504863,0.00032876,2]
[310210842,1704401446724,-507.66759524,0.00032876,2]
[310210844,1704401446733,-500.0,0.00032876,2]
[310210846,1704401446743,-500.0,0.00032876,2]
[310210848,1704401446754,-500.0,0.00032876,2]
[310210850,1704401446763,-500.0,0.00032876,2]
[310210852,1704401446773,-500.0,0.00032876,2]
[310210854,1704401446784,-500.0,0.00032876,2]
[310210856,1704401446793,-500.0,0.00032876,2]
[310210858,1704401446803,-500.0,0.00032876,2]
[310210860,1704401446813,-500.0,0.00032876,2]
[310210862,1704401446823,-500.0,0.00032876,2]
[310210864,1704401446833,-500.0,0.00032876,2]
[310210866,1704401446843,-500.0,0.00032876,2]
[310210868,1704401446853,-500.0,0.00032876,2]
[310210870,1704401446862,-566.36315459,0.00032876,2]
[310210873,1704401446873,-500.0,0.00032876,2]
[310210875,1704401446883,-196.79674034,0.00032876,2]
[310210877,1704401446892,-500.0,0.00032876,2]
[310210879,1704401446901,-502.22694067,0.00032876,2]
[310210881,1704401446911,-500.0,0.00032876,2]
[310210883,1704401446921,-500.0,0.00032876,2]
[310210885,1704401446931,-611.97,0.00032876,2]
[310210887,1704401446940,-500.0,0.00032876,2]
[310210889,1704401446950,-500.0,0.00032876,2]
[310210891,1704401446960,-500.0,0.00032876,2]
[310210893,1704401446970,-500.0,0.00032876,2]
[310210895,1704401446980,-500.0,0.00032876,2]
[310210897,1704401446990,-500.0,0.00032876,2]
[310210899,1704401447000,-500.0,0.00032876,2]
[310210901,1704401447010,-500.0,0.00032876,2]
[310210903,1704401447020,-607.98281456,0.00032876,2]
[310210905,1704401447030,-500.0,0.00032876,2]
[310210907,1704401447040,-593.47,0.00032876,2]
[310210910,1704401447050,-500.0,0.00032876,2]
[310210912,1704401447060,-500.0,0.00032876,2]
[310210914,1704401447070,-500.0,0.00032876,2]
[310210916,1704401447081,-500.0,0.00032876,2]
[310210918,1704401447091,-505.70849684,0.00032876,2]
[310210920,1704401447102,-500.0,0.00032876,2]
[310210922,1704401447111,-500.0,0.00032876,2]
[310210924,1704401447121,-500.0,0.00032876,2]
[310210926,1704401447131,-500.0,0.00032876,2]
[310210928,1704401447141,-500.0,0.00032876,2]
[310210930,1704401447150,-500.0,0.00032876,2]
[310210932,1704401447161,-505.76206822,0.00032876,2]
[310210934,1704401447171,-500.0,0.00032876,2]
[310210936,1704401447181,-545.71,0.00032876,2]
[310210938,1704401447191,-500.0,0.00032876,2]
[310210940,1704401447201,-500.0,0.00032876,2]
[310210942,1704401447211,-500.0,0.00032876,2]
[310210945,1704401447221,-534.84548727,0.00032876,2]
[310210947,1704401447234,-500.0,0.00032876,2]
[310210949,1704401447244,-500.0,0.00032876,2]
[310210951,1704401447257,-500.0,0.00032876,2]
[310210953,1704401447271,-500.0,0.00032876,2]
[310210955,1704401447281,-500.0,0.00032876,2]
[310210957,1704401447292,-500.0,0.00032876,2]
[310210959,1704401447303,-500.0,0.00032876,2]
[310210962,1704401447313,-500.0,0.00032876,2]
[310210964,1704401447323,-500.0,0.00032876,2]
[310210966,1704401447333,-258.55302239,0.00032876,2]
[310210968,1704401447343,-500.0,0.00032876,2]
[310210970,1704401447353,-500.0,0.00032876,2]
[310210972,1704401447362,-500.0,0.00032876,2]
[310210974,1704401447372,-500.0,0.00032876,2]
[310210975,1704401447382,-500.0,0.00032876,2]
[310210976,1704401447391,-500.0,0.00032876,2]
[310210977,1704401447400,-500.0,0.00032876,2]
[310210978,1704401447410,-500.0,0.00032876,2]
[310210979,1704401447420,-393.9318228,0.00032876,2]
[310210980,1704401447429,-500.0,0.00032876,2]
[310210981,1704401447438,-500.0,0.00032876,2]
[310210982,1704401447448,-604.16,0.00032876,2]
[310210983,1704401447458,-500.0,0.00032876,2]
[310210984,1704401447467,-500.0,0.00032876,2]
[310210985,1704401447477,-500.0,0.00032876,2]
[310210986,1704401447486,-500.0,0.00032876,2]
[310210988,1704401447495,-150.0,0.00032876,2]
[310210990,1704401447505,-500.0,0.00032876,2]
[310210992,1704401447515,-500.0,0.00032876,2]
[310210994,1704401447524,-500.0,0.00032876,2]
[310210996,1704401447533,-500.0,0.00032876,2]
[310210998,1704401447543,-500.0,0.00032876,2]
[310211000,1704401447554,-500.0,0.00032876,2]
[310211002,1704401447563,-500.0,0.00032876,2]
[310211004,1704401447573,-500.0,0.00032876,2]
[310211006,1704401447582,-500.0,0.00032876,2]
[310211008,1704401447592,-500.0,0.00032876,2]
[310211010,1704401447601,-500.0,0.00032876,2]
[310211012,1704401447610,-500.0,0.00032876,2]
[310211014,1704401447620,-500.0,0.00032876,2]
[310211016,1704401447629,-587.29,0.00032876,2]
[310211018,1704401447638,-500.0,0.00032876,2]
[310211020,1704401447648,-500.0,0.00032876,2]
[310211022,1704401447658,-500.0,0.00032876,2]
[310211024,1704401447667,-500.0,0.00032876,2]
[310211026,1704401447676,-500.0,0.00032876,2]
[310211029,1704401447686,-571.79,0.00032876,2]
[310211031,1704401447695,-512.76,0.00032876,2]
[310211033,1704401447705,-527.63,0.00032876,2]
[310211035,1704401447714,-500.0,0.00032876,2]
[310211037,1704401447724,-500.0,0.00032876,2]
[310211039,1704401447733,-500.0,0.00032876,2]
[310211041,1704401447742,-500.0,0.00032876,2]
[310211043,1704401447753,-500.0,0.00032876,2]
[310211045,1704401447762,-500.0,0.00032876,2]
[310211047,1704401447772,-500.0,0.00032876,2]
[310211049,1704401447781,-500.0,0.00032876,2]
[310211051,1704401447791,-500.0,0.00032876,2]
[310211053,1704401447800,-500.0,0.00032876,2]
[310211055,1704401447810,-500.0,0.00032876,2]
[310211057,1704401447820,-500.0,0.00032876,2]
[310211059,1704401447829,-124.47199391,0.00032876,2]
[310211074,1704401447969,-375.52800609,0.00032876,2]
[310211076,1704401447981,-500.0,0.00032876,2]
[310211079,1704401447992,-500.0,0.00032876,2]
[310211081,1704401448002,-500.0,0.00032876,2]
[310211083,1704401448011,-439.35576521,0.00032876,2]
[310211085,1704401448020,-500.0,0.00032876,2]
[310211087,1704401448030,-500.0,0.00032876,2]
[310211089,1704401448039,-500.0,0.00032876,2]
[310211091,1704401448049,-500.0,0.00032876,2]
[310211093,1704401448058,-500.0,0.00032876,2]
[310211095,1704401448068,-617.19,0.00032876,2]
[310211097,1704401448078,-500.0,0.00032876,2]
[310211099,1704401448088,-500.0,0.00032876,2]
[310211101,1704401448097,-500.0,0.00032876,2]
[310211103,1704401448106,-500.0,0.00032876,2]
[310211105,1704401448116,-535.3612207,0.00032876,2]
[310211107,1704401448127,-500.0,0.00032876,2]
[310211109,1704401448136,-198.18598921,0.00032876,2]
[310211111,1704401448146,-500.0,0.00032876,2]
[310211113,1704401448155,-500.0,0.00032876,2]
[310211115,1704401448165,-500.0,0.00032876,2]
[310211117,1704401448175,-500.0,0.00032876,2]
[310211119,1704401448185,-588.0,0.00032876,2]
[310211121,1704401448195,-500.0,0.00032876,2]
[310211123,1704401448205,-468.04798651,0.00032876,2]
[310211125,1704401448215,-500.0,0.00032876,2]
[310211127,1704401448226,-500.0,0.00032876,2]
[310211130,1704401448236,-570.92558927,0.00032876,2]
[310211132,1704401448245,-500.0,0.00032876,2]
[310211134,1704401448255,-500.0,0.00032876,2]
[310211136,1704401448265,-500.0,0.00032876,2]
[310211138,1704401448277,-500.0,0.00032876,2]
[310211140,1704401448288,-500.0,0.00032876,2]
[310211142,1704401448297,-500.0,0.00032876,2]
[310211144,1704401448307,-500.0,0.00032876,2]
[310211146,1704401448317,-500.0,0.00032876,2]
[310211148,1704401448327,-500.0,0.00032876,2]
[310211150,1704401448338,-500.0,0.00032876,2]
[310211152,1704401448348,-500.0,0.00032876,2]
[310211154,1704401448358,-500.0,0.00032876,2]
[310211156,1704401448367,-500.0,0.00032876,2]
[310211158,1704401448377,-500.0,0.00032876,2]
[310211160,1704401448387,-500.0,0.00032876,2]
[310211162,1704401448397,-500.0,0.00032876,2]
[310211164,1704401448407,-500.0,0.00032876,2]
[310211166,1704401448417,-500.0,0.00032876,2]
[310211168,1704401448427,-552.50875226,0.00032876,2]
[310211170,1704401448436,-1248.51,0.00032876,2]
[310211172,1704401448445,-500.0,0.00032876,2]
[310211174,1704401448455,-500.0,0.00032876,2]
[310211176,1704401448465,-500.0,0.00032876,2]
[310211178,1704401448474,-500.0,0.00032876,2]
[310211180,1704401448484,-500.0,0.00032876,2]
[310211182,1704401448493,-500.0,0.00032876,2]
[310211184,1704401448503,-500.0,0.00032876,2]
[310211186,1704401448512,-909.21,0.00032876,2]
[310211188,1704401448521,-500.0,0.00032876,2]
[310211190,1704401448531,-500.0,0.00032876,2]
[310211192,1704401448541,-500.0,0.00032876,2]
[310211194,1704401448550,-500.0,0.00032876,2]
[310211196,1704401448560,-500.0,0.00032876,2]
[310211198,1704401448569,-500.0,0.00032876,2]
[310211201,1704401448579,-500.0,0.00032876,2]
[310211202,1704401448588,-500.0,0.00032876,2]
[310211205,1704401448598,-500.0,0.00032876,2]
[310211206,1704401448607,-500.0,0.00032876,2]
[310211209,1704401448617,-500.0,0.00032876,2]
[310211210,1704401448626,-500.0,0.00032876,2]
[310211222,1704401448636,-500.0,0.00032876,2]
[310211224,1704401448730,-500.0,0.00032876,2]
[310211226,1704401448740,-500.0,0.00032876,2]
[310211228,1704401448749,-500.0,0.00032876,2]
[310211230,1704401448759,-500.0,0.00032876,2]
[310211231,1704401448768,-500.0,0.00032876,2]
[310211233,1704401448777,-500.0,0.00032876,2]
[310211236,1704401448787,-500.0,0.00032876,2]
[310211238,1704401448797,-500.0,0.00032876,2]
[310211239,1704401448806,-500.0,0.00032876,2]
[310211241,1704401448816,-500.0,0.00032876,2]
[310211243,1704401448825,-500.0,0.00032876,2]
[310211245,1704401448835,-1560.01,0.00032876,2]
[310211247,1704401448844,-500.0,0.00032876,2]
[310211249,1704401448853,-500.0,0.00032876,2]
[310211251,1704401448864,-500.0,0.00032876,2]
[310211253,1704401448874,-500.0,0.00032876,2]
[310211255,1704401448884,-500.0,0.00032876,2]
[310211257,1704401448894,-603.46,0.00032876,2]
[310211260,1704401448904,-500.0,0.00032876,2]
[310211262,1704401448920,-500.0,0.00032876,2]
[310211265,1704401448935,-500.0,0.00032876,2]
[310211267,1704401448944,-607.32660471,0.00032876,2]
[310211269,1704401448953,-500.0,0.00032876,2]
[310211271,1704401448963,-1438.77,0.00032876,2]
[310211273,1704401448973,-500.0,0.00032876,2]
[310211275,1704401448982,-500.0,0.00032876,2]
[310211277,1704401448992,-1746.94,0.00032876,2]
[310211279,1704401449003,-500.0,0.00032876,2]
[310211281,1704401449013,-500.0,0.00032876,2]
[310211283,1704401449023,-500.0,0.00032876,2]
[310211285,1704401449033,-500.0,0.00032876,2]
[310211287,1704401449042,-500.0,0.00032876,2]
[310211289,1704401449051,-840.47,0.00032876,2]
[310211291,1704401449061,-500.0,0.00032876,2]
[310211293,1704401449071,-500.0,0.00032876,2]
[310211295,1704401449081,-500.0,0.00032876,2]
[310211297,1704401449090,-500.0,0.00032876,2]
[310211299,1704401449100,-500.0,0.00032876,2]
[310211301,1704401449113,-500.0,0.00032876,2]
[310211303,1704401449123,-500.0,0.00032876,2]
[310211305,1704401449132,-500.0,0.00032876,2]
[310211307,1704401449142,-500.0,0.00032876,2]
[310211309,1704401449152,-500.0,0.00032876,2]
[310211311,1704401449161,-525.47,0.00032876,2]
[310211313,1704401449171,-500.0,0.00032876,2]
[310211315,1704401449181,-501.14,0.00032876,2]
[310211317,1704401449190,-500.0,0.00032876,2]
[310211319,1704401449200,-1823.67,0.00032876,2]
[310211321,1704401449210,-1112.35,0.00032876,2]
[310211322,1704401449219,-500.0,0.00032876,2]
[310211323,1704401449229,-500.0,0.00032876,2]
[310211324,1704401449239,-500.0,0.00032876,2]
[310211325,1704401449248,-500.0,0.00032876,2]
[310211326,1704401449258,-500.0,0.00032876,2]
[310211327,1704401449268,-500.0,0.00032876,2]
[310211328,1704401449278,-500.0,0.00032876,2]
[310211329,1704401449288,-500.0,0.00032876,2]
[310211330,1704401449298,-500.0,0.00032876,2]
[310211331,1704401449308,-500.0,0.00032876,2]
[310211332,1704401449319,-552.04,0.00032876,2]
[310211333,1704401449328,-500.0,0.00032876,2]
[310211334,1704401449338,-2071.57,0.00032876,2]
[310211335,1704401449347,-500.0,0.00032876,2]
[310211336,1704401449357,-500.0,0.00032876,2]
[310211337,1704401449367,-500.0,0.00032876,2]
[310211338,1704401449377,-500.0,0.00032876,2]
[310211339,1704401449386,-578.22,0.00032876,2]
[310211340,1704401449396,-500.0,0.00032876,2]
[310211341,1704401449406,-573.61,0.00032876,2]
[310211342,1704401449415,-526.77,0.00032876,2]
[310211343,1704401449424,-500.0,0.00032876,2]
[310211344,1704401449434,-500.0,0.00032876,2]
[310211345,1704401449443,-540.58,0.00032876,2]
[310211346,1704401449453,-500.0,0.00032876,2]
[310211347,1704401449462,-500.0,0.00032876,2]
[310211348,1704401449471,-500.0,0.00032876,2]
[310211349,1704401449481,-500.0,0.00032876,2]
[310211350,1704401449492,-500.0,0.00032876,2]
[310211351,1704401449502,-1619.49,0.00032876,2]
[310211352,1704401449512,-500.0,0.00032876,2]
[310211353,1704401449522,-500.0,0.00032876,2]
[310211354,1704401449533,-1458.89,0.00032876,2]
[310211355,1704401449543,-500.0,0.00032876,2]
[310211356,1704401449553,-500.0,0.00032876,2]
[310211357,1704401449562,-500.0,0.00032876,2]
[310211358,1704401449572,-581.11,0.00032876,2]
[310211359,1704401449583,-500.0,0.00032876,2]
[310211360,1704401449593,-611.41,0.00032876,2]
[310211361,1704401449603,-500.0,0.00032876,2]
[310211362,1704401449613,-500.0,0.00032876,2]
[310211363,1704401449622,-1245.66,0.00032876,2]
[310211364,1704401449634,-500.0,0.00032876,2]
[310211365,1704401449644,-561.75,0.00032876,2]
[310211366,1704401449654,-666.6,0.00032876,2]
[310211367,1704401449665,-500.0,0.00032876,2]
[310211368,1704401449675,-1469.77,0.00032876,2]
[310211369,1704401449685,-500.0,0.00032876,2]
[310211370,1704401449694,-500.0,0.00032876,2]
[310211371,1704401449704,-1337.34,0.00032876,2]
[310211372,1704401449714,-648.96,0.00032876,2]
[310211373,1704401449723,-500.0,0.00032876,2]
[310211374,1704401449733,-500.0,0.00032876,2]
[310211375,1704401449743,-500.0,0.00032876,2]
[310211376,1704401449753,-500.0,0.00032876,2]
[310211377,1704401449763,-500.0,0.00032876,2]
[310211378,1704401449773,-500.0,0.00032876,2]
[310211379,1704401449783,-197.04426969,0.00032876,2]
[310211380,1704401449793,-500.0,0.00032876,2]
[310211381,1704401449803,-500.0,0.00032876,2]
[310211382,1704401449812,-500.0,0.00032876,2]
[310211383,1704401449822,-500.0,0.00032876,2]
[310211384,1704401449831,-500.0,0.00032876,2]
[310211385,1704401449841,-500.0,0.00032876,2]
[310211386,1704401449851,-500.0,0.00032876,2]
[310211387,1704401449860,-500.0,0.00032876,2]
[310211388,1704401449869,-500.0,0.00032876,2]